Workbook

Sheet 1.sz. melléklet
E1: 1. sz. melléklet
A2: A Társulás valamennyi a korábbi megállapodás keretei között együttműködő tagjainak felsorolása
A3: Sorsz | B3: Önkormányzat megnevezése | C3: Székhely | D3: Képviselő neve | E3: Lakosságszám (2014.01.01.)
A4: 1. | B4: Aldebrő | C4: 3353 Aldebrő, Arany János út 1. | D4: Wingendorf János | E4: 716
A5: 2. | B5: Andornaktálya | C5: 3399 Andornaktálya, Rákóczi F. út 160. | D5: Vámosi László | E5: 2850
A6: 3. | B6: Apc | C6: 3032 Apc, Erzsébet tér 1. | D6: Juhász István | E6: 2510
A7: 4. | B7: Ároktő | C7: 3467 Ároktő, Széchenyi u. 75. | D7: Vargáné Kerákgyártó Ildikó | E7: 1196
A8: 5. | B8: Bodony | C8: 3243 Bodony, Liget út 2. | D8: Kovács István | E8: 770
A9: 6. | B9: Boldog | C9: 3016 Boldog, Kossuth út 8. | D9: Laczkó Roland | E9: 3027
A10: 7. | B10: Buják | C10: 3047 Buják, Kossuth út 9. | D10: Borbély Gábor | E10: 2135
A11: 8. | B11: Bükkábrány | C11: 3422 Bükkábrány, Vöröshadsereg út 32. | D11: Szalai Szabolcs | E11: 1674
A12: 9. | B12: Bükkszék | C12: 3335 Bükkszék, Szabadság tér 2. | D12: Zagyva Ferenc Görgyné | E12: 715
A13: 10. | B13: Bükkszenterzsébet | C13: 3257 Bükkszenterzsébet, Szabadság út 199. | D13: Ortó Szilárd | E13: 1076
A14: 11. | B14: Csány | C14: 3015 Csány, Kossuth út 2. | D14: Medve István | E14: 2232
A15: 12. | B15: Demjén | C15: 3395 Demjén, Kossuth Lajos tér 1. | D15: Fodor Géza | E15: 629
A16: 13. | B16: Ecséd | C16: 3013 Ecséd, Szabadság út 139. | D16: Maksa Mátyás | E16: 3237
A17: 14. | B17: Eger MJV | C17: 3300 Eger, Dobó István tér 2. | D17: Habis László | E17: 54315
A18: 15. | B18: Egerbakta | C18: 3321 Egerbakta, Bátori út 12. | D18: Varga Tibor | E18: 1473
A19: 16. | B19: Egercsehi | C19: 3341 Egercsehi, Egri út 8. | D19: Kovács András | E19: 1392
A20: 17. | B20: Egerszalók | C20: 3394 Egerszalók, Sáfrány út 7. | E20: 1912
A21: 18. | B21: Egerszólát | C21: 3328 Egerszólát, Egri út 2. | D21: Verebélyi György | E21: 1099
A22: 19. | B22: Egyházasdengeleg | C22: 3043 Egyházasdengeleg, Rákóczi út 79. | D22: Berkes Balázs | E22: 493
A23: 20. | B23: Erdőkövesd | C23: 3252, Erdőkövesd, Rákóczi út 39. | D23: Gombás Dezsőné | E23: 632
A24: 21. | B24: Erdőkürt | C24: 2176 Erdőkürt, Kossuth u. 51. | D24: Szebenszkiné Palik Katalin | E24: 537
A25: 22. | B25: Erdőtarcsa | C25: 2177 Erdőtarcsa, Iskola út 1. | D25: Markó Anita | E25: 565
A26: 23. | B26: Fedémes | C26: 3255 Fedémes, Petőfi út 117. | D26: Válóci István | E26: 324
A27: 24. | B27: Feldebrő | C27: 3352 Feldebrő, Kossuth út 31. | D27: Gecse Mihály Gábor | E27: 1031
A28: 25. | B28: Felsőtárkány | C28: 3324 Felsőtárkány, Fő út 101 | D28: Dr.Juhász Attila Simon | E28: 3519
A29: 26. | B29: Hatvan | C29: 3000 Hatvan, Kossuth tér 2. | D29: Horváth Richárd | E29: 21236
A30: 27. | B30: Héhalom | C30: 3041 Héhalom, Petőfi u. 1. | D30: Bakos József | E30: 1006
A31: 28. | B31: Hejőkürt | C31: 3588 Hejőkürt, Szent István u 62. | D31: Strezenecki Stella | E31: 308
A32: 29. | B32: Heréd | C32: 3011 Heréd, Rákóczi F. út 39. | D32: Kómár József | E32: 1963
A33: 30. | B33: Hevesaranyos | C33: 3322 Hevesaranyos, Petőfi út 1. | D33: Dorkó Csaba | E33: 647
A34: 31. | B34: Hort | C34: 3014 Hort, Szabadság tér 40. | D34: Kerek Oszkár | E34: 3677
A35: 32. | B35: Istenmezeje | C35: 3253 Istenmezeje, Nefelejcs út 18. | D35: Nagy Péter | E35: 1587
A36: 33. | B36: Ivád | C36: 3248 Ivád, Ivády Sándor tér 5. | D36: Valyon László | E36: 408
A37: 34. | B37: Jászfényszaru | C37: 5126 Jászfényszaru, Szabadság tér 1. | D37: Győriné Dr.Czeglédi Márta | E37: 5731
A38: 35. | B38: Kál | C38: 3350 Kál, Szent István tér 2. | D38: Morvai János | E38: 3673
A39: 36. | B39: Kálló | C39: 2175 Kálló, Kossuth u. 16. | D39: Baboss Buda | E39: 1546
A40: 37. | B40: Kápolna | C40: 3355 Kápolna, Kossuth út 12. | D40: Dr.Berecz Kálmán | E40: 1579
A41: 38. | B41: Kerecsend | C41: 3396 Kerecsend, Fő út 55. | D41: Sári László | E41: 2396
A42: 39. | B42: Kerekharaszt | C42: 3009 Kerekharaszt, Bimbó u. 2. | D42: Szabó Ádám | E42: 1031
A43: 40. | B43: Kisbágyon | C43: 3046 Kisbágyon, Szabadság u. 21 | D43: Nagy Attiláné | E43: 442
A44: 41. | B44: Kisfüzes | C44: 3256 Kisfüzes, Szabadság tér 2. | D44: Menyhárt Balázs | E44: 145
A45: 42. | B45: Kisköre | C45: 3384 Kisköre, Széchenyi u. 24. | D45: Magyar Csilla | E45: 2891
A46: 43. | B46: Kompolt | C46: 3350 Komolt, Kápolnai út 28. | D46: Balázs Zoltán | E46: 2098
A47: 44. | B47: Lőrinci | C47: 3021 Lőrinci, Szabadság tér 26. | D47: Víg Zoltán | E47: 5756
A48: 45. | B48: Maklár | C48: 3397 Maklár, Templom tér 7. | D48: Havasi László | E48: 2466
A49: 46. | B49: Mátraballa | C49: 3247 Mátraballa, Iskola u. 5. | D49: Dudás Róbert | E49: 745
A50: 47. | B50: Mátraderecske | C50: 3246 Mátraderecske, Hősök tere 12. | D50: Forgó Gábor | E50: 1917
A51: 48. | B51: Mezőkeresztes | C51: 3441 Mezőkeresztes, Dózsa György út 30. | D51: Majoros János | E51: 4035
A52: 49. | B52: Nagykökényes | C52: 3012 Nagykökényes, Szabadság út 37. | D52: Besszer Andrásné | E52: 589
A53: 50. | B53: Nagytálya | C53: 3398 Nagytálya, Kossuth u. 34. | D53: Orosz József | E53: 860
A54: 51. | B54: Nagyút | C54: 3357 Nagyút, Szabadság tér 1. | D54: Tóth Géza | E54: 725
A55: 52. | B55: Nagyvisnyó | C55: 3349 Nagyvisnyó, Felszabadulás út 12. | D55: Csőgér Bálint | E55: 949
A56: 53. | B56: Noszvaj | C56: 3325 Noszvaj, Kossuth út 1. | D56: Bóta Géza | E56: 1813
A57: 54. | B57: Novaj | C57: 3327 Novaj, Rákóczi F. út 3. | D57: Dr. Darvainé Dr. Kádár Katalin | E57: 1398
A60: Sorsz | B60: Önkormányzat megnevezése | C60: Székhely | D60: Képviselő neve | E60: Lakosságszám (2013.12.31)
A61: 55. | B61: Ostoros | C61: 3326 Ostoros, Hősök tere 4. | D61: Kisari Zoltán | E61: 2698
A62: 56. | B62: Palotás | C62: 3042 Palotás, Kossuth u. 1 | D62: Szabó Mihály | E62: 1629
A63: 57. | B63: Parád | C63: 3240 Parád, Kossuth u. 91. | D63: Mudriczki József | E63: 2085
A64: 58. | B64: Pétervására | C64: 3250 Pétervására, Szabadság tér 1. | D64: Eged István | E64: 2319
A65: 59. | B65: Recsk | C65: 3245 Recsk, Kossuth u. 165. | D65: Nagy Sándor | E65: 2832
A66: 60. | B66: Rózsaszentmárton | C66: 3033 Rózsaszentmárton, Kossuth út 1. | D66: Sípos Jánosné | E66: 1985
A67: 61. | B67: Sajóhídvég | C67: 3576 Sajóhídvég, Rákóczi u. 37. | D67: Török Gergely | E67: 1129
A68: 62. | B68: Sirok | C68: 3332 Sirok, Borics Pál út 6. | D68: Tuza Gábor | E68: 1900
A69: 63. | B69: Szirák | C69: 3044 Szirák, Petőfi út 31. | D69: Kómár Jánosné | E69: 1173
A70: 64. | B70: Szajla | C70: 3334 Szajla, Kertész u. 2. | D70: Vincze Imre Istvánné | E70: 606
A71: 65. | B71: Szarvaskő | C71: 3323 Szarvaskő, Rákóczi út 1. | D71: Szabóné Balla Marianna | E71: 387
A72: 66. | B72: Szentdomonkos | C72: 3259 Szentdomonkos, Szabadság u. 48. | D72: Kovács Zoltán | E72: 506
A73: 67. | B73: Szilvásvárad | C73: 3348 Szilvásvárad, Miskolci út 7. | D73: Szaniszló László | E73: 1640
A74: 68. | B74: Szúcs | C74: 3338 Szúcs, Kossuth út 50. | D74: Egyed Zsigmond | E74: 464
A75: 69. | B75: Taktaharkány | C75: 3922 Taktaharkány, Gépállomás u. 4. | D75: Dr. Szemán Ákos Gyula | E75: 3716
A76: 70. | B76: Tarnalelesz | C76: 3258 Tarnalelesz, Fedémesi út 8. | D76: Kovács Béla | E76: 1803
A77: 71. | B77: Tarnaméra | C77: 3284 Tarnaméra, Árpád u. 10. | D77: Tímár László | E77: 1670
A78: 72. | B78: Tarnaszentmária | C78: 3331 Tarnaszentmária, Egri út 2. | D78: Czipó László | E78: 239
A79: 73. | B79: Terpes | C79: 3333 Terpes, Rákóczi F. út 23. | D79: Zvaráné Béres Mária | E79: 207
A80: 74. | B80: Tibolddaróc | C80: 3423 Tibolddaróc, Széchenyi út 1. | D80: Dósa József | E80: 1434
A81: 75. | B81: Tiszaújváros | C81: 3580 Tiszaújváros, Bethlen G. u.7. | D81: Bráz György | E81: 17821
A82: 76. | B82: Tófalu | C82: 3354 Tófalu, Kossuth u. 16. | D82: Ignácz Szabolcs András | E82: 593
A83: 77. | B83: Vanyarc | C83: 2688 Vanyarc, Veres Pálné u .54 | D83: Hrncsjár Mihályné | E83: 1300
A84: 78. | B84: Váraszó | C84: 3254 Váraszó, Rákóczi út 1. | D84: Pál István László | E84: 495
A85: 79. | B85: Vámosgyörk | C85: 3291 Vámosgyörk, Petőfi út 25. | D85: Gedei Zoltán | E85: 1997
A86: 80. | B86: Verpelét | C86: 3351 Verpelét, Kossuth Lajos út 73. | D86: Farkas Sándor | E86: 3912
A87: 81. | B87: Zagyvaszántó | C87: 3031 Zagyvaszántó, Ifjúság tér 1. | D87: Fekete László | E87: 1960

Sheet 1.A.melléklet
D1: 1/A. sz. melléklet
A2: Kizárólag a Társulás I. Fejezet 4. pont b) alpontja szerinti önkormányzati feladatokban együttműködő tagjainak felsorolása
A3: Sorsz | B3: Önkormányzat megnevezése | C3: Székhely | D3: Képviselő neve | E3: Lakosságszám (2014.01.01.)
A4: 1. | B4: Apc | C4: 3032 Apc, Erzsébet tér 1. | D4: Juhász István | E4: 2510
A5: 2. | B5: Boldog | C5: 3016 Boldog, Kossuth út 8. | D5: Laczkó Roland | E5: 3027
A6: 3. | B6: Csány | C6: 3015 Csány, Kossuth út 2. | D6: Medve István | E6: 2232
A7: 4. | B7: Hatvan | C7: 3000 Hatvan, Kossuth tér 2. | D7: Horváth Richárd | E7: 21236
A8: 5. | B8: Heréd | C8: 3011 Heréd, Rákóczi F. út 39. | D8: Kómár József | E8: 1963
A9: 6. | B9: Hort | C9: 3014 Hort, Szabadság tér 40. | D9: Kerek Oszkár | E9: 3677
A10: 7. | B10: Jászfényszaru | C10: 5126 Jászfényszaru, Szabadság tér 1. | D10: Győriné Dr. Czeglédi Márta | E10: 5731
A11: 8. | B11: Kál | C11: 3350 Kál, Szent István tér 2. | D11: Morvai János | E11: 3673
A12: 9. | B12: Kerekharaszt | C12: 3009 Kerekharaszt, Bimbó u. 2. | D12: Szabó Ádám | E12: 1031
A13: 10. | B13: Nagykökényes | C13: 3012 Nagykökényes, Szabadság út 37. | D13: Besszer Andrásné | E13: 589
A14: 11. | B14: Nagyút | C14: 3357 Nagyút, Szabadság tér 1. | D14: Tóth Géza | E14: 725
A15: 12. | B15: Palotás | C15: 3042 Palotás, Kossuth u. 1 | D15: Szabó Mihály | E15: 1629
A16: 13. | B16: Rózsaszentmárton | C16: 3033 Rózsaszentmárton, Kossuth út 1. | D16: Sípos Jánosné | E16: 1985
A17: 14. | B17: Vanyarc | C17: 2688 Vanyarc, Veres Pálné u .54 | D17: Hrncsjár Mihályné | E17: 1300
A18: 15. | B18: Vámosgyörk | C18: 3291 Vámosgyörk, Petőfi út 25. | D18: Gedei Zoltán | E18: 1997
A19: 16. | B19: Zagyvaszántó | C19: 3031 Zagyvaszántó, Ifjúság tér 1. | D19: Fekete László | E19: 1960

Sheet 1.B.melléklet
E1: 1/B. sz. melléklet
A2: Kizárólag a Társulás I. Fejezet 4. pont a) alpontja szerinti önkormányzati feladatokban együttműködő tagjainak felsorolása
A3: Sorsz | B3: Önkormányzat megnevezése | C3: Székhely | D3: Képviselő neve | E3: Lakosságszám (2014.01.01.)
A4: 1. | B4: Aldebrő | C4: 3353 Aldebrő, Arany János út 1. | D4: Wingendorf János | E4: 716
A5: 2. | B5: Andornaktálya | C5: 3399 Andornaktálya, Rákóczi F. út 160. | D5: Vámosi László | E5: 2850
A6: 3. | B6: Ároktő | C6: 3467 Ároktő, Széchenyi u. 75. | D6: Vargáné Kerékgyártó Ildikó | E6: 1196
A7: 4. | B7: Bodony | C7: 3243 Bodony, Liget út 2. | D7: Kovács István | E7: 770
A8: 5. | B8: Buják | C8: 3047 Buják, Kossuth út 9. | D8: Borbély Gábor | E8: 2135
A9: 6. | B9: Bükkábrány | C9: 3422 Bükkábrány, Vöröshadsereg út 32. | D9: Szalai Szabolcs | E9: 1674
A10: 7. | B10: Bükkszék | C10: 3335 Bükkszék, Szabadság tér 2. | D10: Zagyva Ferenc Györgyné | E10: 715
A11: 8. | B11: Bükkszenterzsébet | C11: 3257 Bükkszenterzsébet, Szabadság út 199. | D11: Ortó Szilárd | E11: 1076
A12: 9. | B12: Demjén | C12: 3395 Demjén, Kossuth Lajos tér 1. | D12: Fodor Géza | E12: 629
A13: 10. | B13: Eger MJV | C13: 3300 Eger, Dobó István tér 2. | D13: Habis László | E13: 54315
A14: 11. | B14: Egerbakta | C14: 3321 Egerbakta, Bátori út 12. | D14: Varga Tibor József | E14: 1473
A15: 12. | B15: Egercsehi | C15: 3341 Egercsehi, Egri út 8. | D15: Kovács András | E15: 1392
A16: 13. | B16: Egerszalók | C16: 3394 Egerszalók, Sáfrány út 7. | E16: 1912
A17: 14. | B17: Egerszólát | C17: 3328 Egerszólát, Egri út 2. | D17: Verebélyi György | E17: 1099
A18: 15. | B18: Erdőkövesd | C18: 3252, Erdőkövesd, Rákóczi út 39. | D18: Gombás Dezsőné | E18: 632
A19: 16. | B19: Fedémes | C19: 3255 Fedémes, Petőfi út 117. | D19: Válóci István | E19: 324
A20: 17. | B20: Feldebrő | C20: 3352 Feldebrő, Kossuth út 31. | D20: Gecse Mihály Gábor | E20: 1031
A21: 18. | B21: Felsőtárkány | C21: 3324 Felsőtárkány, Fő út 101 | D21: Dr. Juhász Attila Simon | E21: 3519
A22: 19. | B22: Hejőkürt | C22: 3588 Hejőkürt, Szent István u 62. | D22: Strezenecki Stella | E22: 308
A23: 20. | B23: Hevesaranyos | C23: 3322 Hevesaranyos, Petőfi út 1. | D23: Dorkó Csaba | E23: 647
A24: 21. | B24: Istenmezeje | C24: 3253 Istenmezeje, Nefelejcs út 18. | D24: Kotroczó István | E24: 1587
A25: 22. | B25: Ivád | C25: 3248 Ivád, Ivády Sándor tér 5. | D25: Valyon László | E25: 408
A26: 23. | B26: Kápolna | C26: 3355 Kápolna, Kossuth út 12. | D26: Dr.Berecz Kálmán | E26: 1579
A27: 24. | B27: Kerecsend | C27: 3396 Kerecsend, Fő út 55. | D27: Sári László | E27: 2396
A28: 25. | B28: Kisfüzes | C28: 3256 Kisfüzes, Szabadság tér 2. | D28: Menyhárt Balázs | E28: 145
A29: 26. | B29: Kompolt | C29: 3350 Komolt, Kápolnai út 28. | D29: Balázs Zoltán | E29: 2098
A30: 27. | B30: Lőrinci | C30: 3021 Lőrinci, Szabadság tér 26. | D30: Víg Zoltán | E30: 5756
A31: 28. | B31: Maklár | C31: 3397 Maklár, Templom tér 7. | D31: Havasi László | E31: 2466
A32: 29. | B32: Mátraballa | C32: 3247 Mátraballa, Iskola u. 5. | D32: Dudás Róbert | E32: 745
A33: 30. | B33: Mátraderecske | C33: 3246 Mátraderecske, Hősök tere 12. | D33: Forgó Gábor | E33: 1917
A34: 31. | B34: Mezőkeresztes | C34: 3441 Mezőkeresztes, Dózsa György út 30. | D34: Majoros János | E34: 4035
A35: 32. | B35: Nagytálya | C35: 3398 Nagytálya, Kossuth u. 34. | D35: Orosz József | E35: 860
A36: 33. | B36: Nagyvisnyó | C36: 3349 Nagyvisnyó, Felszabadulás út 12. | D36: Csőgér Bálint | E36: 949
A37: 34. | B37: Noszvaj | C37: 3325 Noszvaj, Kossuth út 1. | D37: Bóta Géza | E37: 1813
A38: 35. | B38: Novaj | C38: 3327 Novaj, Rákóczi F. út 3. | D38: Dr. Darvainé Dr. Kádár Katalin | E38: 1398
A39: 36. | B39: Ostoros | C39: 3326 Ostoros, Hősök tere 4. | D39: Kisari Zoltán | E39: 2698
A40: 37. | B40: Parád | C40: 3240 Parád, Kossuth u. 91. | D40: Mudriczki József | E40: 2085
A41: 38. | B41: Pétervására | C41: 3250 Pétervására, Szabadság tér 1. | D41: Eged István | E41: 2319
A42: 39. | B42: Recsk | C42: 3245 Recsk, Kossuth u. 165. | D42: Nagy Sándor | E42: 2832
A43: 40. | B43: Sajóhídvég | C43: 3576 Sajóhídvég, Rákóczi u. 37. | D43: Török Gergely | E43: 1129
A44: 41. | B44: Sirok | C44: 3332 Sirok, Borics Pál út 6. | D44: Tuza Gábor | E44: 1900
A45: 42. | B45: Szirák | C45: 3044 Szirák, Petőfi út 31. | D45: Kómár Jánosné | E45: 1173
A46: 43. | B46: Szajla | C46: 3334 Szajla, Kertész u. 2. | D46: Vincze Imre Istvánné | E46: 606
A47: 44. | B47: Szarvaskő | C47: 3323 Szarvaskő, Rákóczi út 1. | D47: Szabóné Balla Marianna | E47: 387
A48: 45. | B48: Szentdomonkos | C48: 3259 Szentdomonkos, Szabadság u. 48. | D48: Kovács Zoltán | E48: 506
A49: 46. | B49: Szilvásvárad | C49: 3348 Szilvásvárad, Miskolci út 7. | D49: Szaniszló László | E49: 1640
A50: 47. | B50: Szúcs | C50: 3338 Szúcs, Kossuth út 50. | D50: Egyed Zsigmond | E50: 464
A51: 48. | B51: Taktaharkány | C51: 3922 Taktaharkány, Gépállomás u. 4. | D51: Dr. Szemán Ákos Gyula | E51: 3716
A52: 49. | B52: Tarnalelesz | C52: 3258 Tarnalelesz, Fedémesi út 8. | D52: Kovács Béla | E52: 1803
A53: 50. | B53: Tarnaméra | C53: 3284 Tarnaméra, Árpád u. 10. | D53: Tímár László | E53: 1670
A54: 51. | B54: Tarnaszentmária | C54: 3331 Tarnaszentmária, Egri út 2. | D54: Czipó László | E54: 239
A55: 52. | B55: Terpes | C55: 3333 Terpes, Rákóczi F. út 23. | D55: Zvaráné Béres Mária | E55: 207
A56: 53. | B56: Tibolddaróc | C56: 3423 Tibolddaróc, Széchenyi út 1. | D56: Dósa József | E56: 1434
A57: 54. | B57: Tiszaújváros | C57: 3580 Tiszaújváros, Bethlen G. u.7. | D57: Bráz György | E57: 17821
A58: 55. | B58: Tófalu | C58: 3354 Tófalu, Kossuth u. 16. | D58: Ignácz Szabolcs András | E58: 593
A59: 56. | B59: Váraszó | C59: 3254 Váraszó, Rákóczi út 1. | D59: Pál István László | E59: 495
A60: 57. | B60: Verpelét | C60: 3351 Verpelét, Kossuth Lajos út 73. | D60: Farkas Sándor | E60: 3912

Sheet 1.C.melléklet
A1: 1/C. sz. melléklet
A2: Kizárólag a Társulás I. Fejezet 4. pont c) alpontja szerinti önkormányzati feladatokban együttműködő tagjainak felsorolása
A3: Sorsz | B3: Önkormányzat megnevezése | C3: Székhely | D3: Képviselő neve | E3: Lakosságszám (2014.01.01.)
A4: 1. | B4: Ecséd | C4: 3013 Ecséd, Szabadság út 139. | D4: Maksa Mátyás | E4: 3237
A5: 2. | B5: Egyházasdengeleg | C5: 3043 Egyházasdengeleg, Rákóczi út 79. | D5: Berkes Balázs | E5: 493
A6: 3. | B6: Erdőkürt | C6: 2176 Erdőkürt, Kossuth u. 51. | D6: Szebenszkiné Palik Katalin | E6: 537
A7: 4. | B7: Erdőtarcsa | C7: 2177 Erdőtarcsa, Iskola út 1. | D7: Markó Anita | E7: 565
A8: 5. | B8: Héhalom | C8: 3041 Héhalom, Petőfi u. 1. | D8: Bakos József | E8: 1006
A9: 6. | B9: Kálló | C9: 2175 Kálló, Kossuth u. 16. | D9: Baboss Buda | E9: 1546
A10: 7. | B10: Kisbágyon | C10: 3046 Kisbágyon, Szabadság u. 21 | D10: Nagy Attiláné | E10: 442
A11: 8. | B11: Kisköre | C11: 3384 Kisköre, Széchenyi u. 24. | D11: Magyar Csilla | E11: 2891

Sheet 4.sz. melléklet_TTtagok
A1: 4.sz. melléklet Körzeti meghatalmazottak jegyzéke
A5: Heves Megyei Regionális Hukkadékgazdálkodási Társulás Társulási Tanácstagok
A10: 1. ÉSZAK-HEVESI KÖRZET | F10: 2. TARNA MENTI KÖRZET
A11: Nagyvisnyó Önkormányzata | F11: Kápolna Önkormányzata
A12: 3349 Nagyvisnyó, Felszabadulás út 12. | F12: 3355 Kápolna, Kossuth út 12.
A13: Polgármester: Csőgér Bálint | F13: Polgármester: Dr. Berecz Kálmán
A19: 3. HATVAN KÖRZETE | F19: 4. EGER KÖRZETE
A20: Kál Önkormányzata | F20: Andornaktálya önkormányzata
A21: 3350 Kál, Szent István tér 2. | F21: 3399 Andornaktálya, II. Rákóczi út 160.
A22: Polgármester: Morvai János | F22: Polgármester: Vámosi László
A28: 5. PÉTERVÁSÁRA KÖRZETE | F28: 6. BORSOD KÖRZETE
A29: Pétervására Önkormányzata | F29: Tiszaújváros Önkormányzata
A30: 3250 Pétervására, Szabadság tér 1. | F30: 3580 Tiszaújváros, Bethlen G. u.7.
A31: Polgármester: Eged István | F31: Polgármester: Bráz György
A37: 7. NÓGRÁD KÖRZETE | F37: 8. EGER
A38: Héhalom Önkormányzata | F38: Eger Megyei Jogú Város Önkormányzata
A39: 3041 Héhalom, Petőfi út 1. | F39: 3300 Eger, Dobó tér 2.
A40: Polgármester: Bakos József | F40: Polgármester: Habis László

Sheet 5sz.melléklet_PEB
C1: 5.sz. melléklet
A5: Heves Megyei Regionális Hulladékgazdálkodási Társulás Pénzügyi Ellenőrző Bizottság tagjainak névjegyzéke
A9: Bizottsági tag: | B9: Tarna Mente Körzet | C9: Kompolt Önkormányzat Polgármestere Balázs Zoltán
A10: Bizottsági tag: | B10: Borsod Körzete | C10: Mezőkeresztes Önkormányzat Polgármestere Majoros János
A11: Bizottsági tag: | B11: Pétervására Körzete | C11: Mátraderecske Önkormányzat Polgármestere Forgó Gábor
A12: Bizottsági tag: | B12: Hatvan Körzete | C12: Kál Önkormányzat Polgármestere Morvai János
A13: Bizottsági tag: | B13: Eger Körzete | C13: ……………. Önkormányzat Polgármestere ………………..

Sheet 3szmelléklet_körzetenkénti jegy
E1: 3.sz. melléklet
A2: Az önkormányzatok körzetenkénti jegyzéke
A4: Ssz. | B4: Önkörmányzat | C4: Körzet | D4: Lakosság száma (2013.12.31.) | E4: Szavazati arány (%)
A5: 1. | B5: Eger | C5: Eger | D5: 54315 | E5: =D5/221173*100 -> 24.55769918
A7: 2. | B7: Andornaktálya | C7: Eger Körzete | D7: 2850 | E7: =D7/221173*100 -> 1.28858405
A8: 3. | B8: Demjén | C8: Eger Körzete | D8: 629 | E8: 0.2843927604
A9: 4. | B9: Egerbakta | C9: Eger Körzete | D9: 1473 | E9: 0.665994493
A10: 5. | B10: Egerszalók | C10: Eger Körzete | D10: 1912 | E10: 0.8644816501
A11: 6. | B11: Egerszólát | C11: Eger Körzete | D11: 1099 | E11: 0.4968960949
A12: 7. | B12: Felsőtárkány | C12: Eger Körzete | D12: 3519 | E12: 1.5910622
A13: 8. | B13: Kerecsend | C13: Eger Körzete | D13: 2396 | E13: 1.083314871
A14: 9. | B14: Maklár | C14: Eger Körzete | D14: 2466 | E14: 1.114964304
A15: 10. | B15: Nagytálya | C15: Eger Körzete | D15: 860 | E15: 0.3888358886
A16: 11. | B16: Noszvaj | C16: Eger Körzete | D16: 1813 | E16: 0.8197203094
A17: 12. | B17: Novaj | C17: Eger Körzete | D17: 1398 | E17: 0.6320843864
A18: 13. | B18: Ostoros | C18: Eger Körzete | D18: 2698 | E18: 1.219859567
A19: 14. | B19: Szarvaskő | C19: Eger Körzete | D19: 387 | E19: 0.1749761499
D20: =SUM(D7:D19) -> 23500 | E20: 10.62516672
A22: 15. | B22: Egercsehi | C22: Észak-Hevesi Körzet | D22: 1392 | E22: =D22/221173*100 -> 0.6293715779
A23: 16. | B23: Hevesaranyos | C23: Észak-Hevesi Körzet | D23: 647 | E23: =D23/221173*100 -> 0.292531186
A24: 17. | B24: Nagyvisnyó | C24: Észak-Hevesi Körzet | D24: 949 | E24: =D24/221173*100 -> 0.4290758818
A25: 18. | B25: Szilvásvárad | C25: Észak-Hevesi Körzet | D25: 1640 | E25: =D25/221173*100 -> 0.741500997
A26: 19. | B26: Szúcs | C26: Észak-Hevesi Körzet | D26: 464 | E26: =D26/221173*100 -> 0.209790526
D27: =SUM(D22:D26) -> 5092 | E27: 2.302270169
A29: 20. | B29: Apc | C29: Hatvan Körzete | D29: 2510 | E29: 1.134858233
A30: 21. | B30: Boldog | C30: Hatvan Körzete | D30: 3027 | E30: 1.368611901
A31: 22. | B31: Csány | C31: Hatvan Körzete | D31: 2232 | E31: 1.009164771
A32: 23. | B32: Hatvan | C32: Hatvan Körzete | D32: 21236 | E32: 9.601533641
A33: 24. | B33: Heréd | C33: Hatvan Körzete | D33: 1963 | E33: 0.8875405226
A34: 25. | B34: Hort | C34: Hatvan Körzete | D34: 3677 | E34: 1.662499491
A35: 26. | B35: Jászfényszaru | C35: Hatvan Körzete | D35: 5731 | E35: 2.591184277
A36: 27. | B36: Kál | C36: Hatvan Körzete | D36: 3673 | E36: =D36/221173*100 -> 1.660690952
A37: 28. | B37: Kerekharaszt | C37: Hatvan Körzete | D37: 1031 | E37: 0.4661509316
A38: 29. | B38: Nagykökényes | C38: Hatvan Körzete | D38: 589 | E38: 0.2663073702
A39: 30. | B39: Nagyút | C39: Hatvan Körzete | D39: 725 | E39: =D39/221173*100 -> 0.3277976968
A40: 31. | B40: Palotás | C40: Hatvan Körzete | D40: 1629 | E40: =D40/221173*100 -> 0.7365275147
A41: 32. | B41: Rószaszentmárton | C41: Hatvan Körzete | D41: 1985 | E41: 0.8974874872
A42: 33. | B42: Vanyarc | C42: Hatvan Körzete | D42: 1300 | E42: =D42/221173*100 -> 0.5877751805
A43: 34. | B43: Vámosgyörk | C43: Hatvan Körzete | D43: 1997 | E43: 0.9029131042
A44: 35. | B44: Zagyvaszántó | C44: Hatvan Körzete | D44: 1960 | E44: 0.8861841183
D45: =SUM(D29:D44) -> 55265 | E45: 24.98722719
A47: 36. | B47: Buják | C47: Nógrád Körzete | D47: 2135 | E47: 0.9653077003
A48: 37. | B48: Ecséd | C48: Nógrád Körzete | D48: 3237 | E48: =D48/221173*100 -> 1.463560199
A49: 38. | B49: Egyházasdengeleg | C49: Nógrád Körzete | D49: 493 | E49: 0.2229024338
A50: 39. | B50: Erdőkürt | C50: Nógrád Körzete | D50: 537 | E50: 0.242796363
A51: 40. | B51: Erdőtarcsa | C51: Nógrád Körzete | D51: 565 | E51: 0.2554561361
A52: 41. | B52: Héhalom | C52: Nógrád Körzete | D52: 1006 | E52: 0.4548475628
A53: 42. | B53: Lőrinci | C53: Nógrád Körzete | D53: 5756 | E53: =D53/221173*100 -> 2.602487645
A54: 43. | B54: Kálló | C54: Nógrád Körzete | D54: 1546 | E54: 0.6990003301
A55: 44. | B55: Kisbágyon | C55: Nógrád Körzete | D55: 442 | E55: 0.1998435614
A56: 45. | B56: Szirák | C56: Nógrád Körzete | D56: 1173 | E56: =D56/221173*100 -> 0.5303540667
D57: =SUM(D47:D56) -> 16890 | E57: 7.636555999
A59: Ssz. | B59: Önkörmányzat | C59: Körzet | D59: Lakosság száma (2013.01.01) | E59: Szavazati arány (%)
A60: 46. | B60: Bodony | C60: Pétervására körzete | D60: 770 | E60: 0.3481437608
A61: 47. | B61: Bükkszék | C61: Pétervására körzete | D61: 715 | E61: 0.3232763493
A62: 48. | B62: Bükkszenterzsébet | C62: Pétervására körzete | D62: 1076 | E62: 0.4864969956
A63: 49. | B63: Erdőkövesd | C63: Pétervására körzete | D63: 632 | E63: 0.2857491647
A64: 50. | B64: Fedémes | C64: Pétervására körzete | D64: 324 | E64: 0.1464916604
A65: 51. | B65: Istenmezeje | C65: Pétervására körzete | D65: 1587 | E65: 0.717537855
A66: 52. | B66: Ivád | C66: Pétervására körzete | D66: 408 | E66: 0.1844709797
A67: 53. | B67: Kisfüzes | C67: Pétervására körzete | D67: 145 | E67: 0.06555953937
A68: 54. | B68: Mátraballa | C68: Pétervására körzete | D68: 745 | E68: 0.3368403919
A69: 55. | B69: Mátraderecske | C69: Pétervására körzete | D69: 1917 | E69: 0.8667423239
A70: 56. | B70: Parád | C70: Pétervására körzete | D70: 2085 | E70: 0.9427009626
A71: 57. | B71: Pétervására | C71: Pétervására körzete | D71: 2319 | E71: =D71/221173*100 -> 1.048500495
A72: 58. | B72: Recsk | C72: Pétervására körzete | D72: 2832 | E72: 1.280445624
A73: 59. | B73: Sirok | C73: Pétervására körzete | D73: 1900 | E73: 0.8590560331
A74: 60. | B74: Szajla | C74: Pétervására körzete | D74: 606 | E74: 0.2739936611
A75: 61. | B75: Szentdomonkos | C75: Pétervására körzete | D75: 506 | E75: 0.2287801856
A76: 62. | B76: Tarnalelesz | C76: Pétervására körzete | D76: 1803 | E76: 0.8151989619
A77: 63. | B77: Terpes | C77: Pétervására körzete | D77: 207 | E77: 0.09359189413
A78: 64. | B78: Váraszó | C78: Pétervására körzete | D78: 495 | E78: 0.2238067033
D79: =SUM(D60:D78) -> 21072 | E79: 9.527383541
A81: 65. | B81: Aldebrő | C81: Tarna Menti Körzet | D81: 716 | E81: 0.323728484
A82: 66. | B82: Feldebrő | C82: Tarna Menti Körzet | D82: 1031 | E82: 0.4661509316
A83: 67. | B83: Kápolna | C83: Tarna Menti Körzet | D83: 1579 | E83: 0.7139207769
A84: 68. | B84: Kisköre | C84: Tarna Menti Körzet | D84: 2891 | E84: 1.307121575
A85: 69. | B85: Kompolt | C85: Tarna Menti Körzet | D85: 2098 | E85: 0.9485787144
A86: 70. | B86: Tarnaméra | C86: Tarna Menti Körzet | D86: 1670 | E86: 0.7550650396
A87: 71. | B87: Tarnaszentmária | C87: Tarna Menti Körzet | D87: 239 | E87: 0.1080602063
A88: 72. | B88: Tófalu | C88: Tarna Menti Körzet | D88: 593 | E88: 0.2681159093
A89: 73. | B89: Verpelét | C89: Tarna Menti Körzet | D89: 3912 | E89: 1.768751159
D90: =SUM(D81:D89) -> 14729 | E90: 6.659492795
A92: 74. | B92: Ároktő | C92: Borsod Körzete | D92: 1196 | E92: 0.5407531661
A93: 75. | B93: Bükkábrány | C93: Borsod Körzete | D93: 1674 | E93: 0.7568735786
A94: 76. | B94: Hejőkürt | C94: Borsod Körzete | D94: 308 | E94: 0.1392575043
A95: 77. | B95: Mezőkeresztes | C95: Borsod Körzete | D95: 4035 | E95: 1.824363733
A96: 78. | B96: Sajóhídvég | C96: Borsod Körzete | D96: 1129 | E96: 0.5104601375
A97: 79. | B97: Taktaharkány | C97: Borsod Körzete | D97: 3716 | E97: 1.680132747
A98: 80. | B98: Tibolddaróc | C98: Borsod Körzete | D98: 1434 | E98: 0.6483612376
A99: 81. | B99: Tiszaújváros | C99: Borsod Körzete | D99: 17821 | E99: 8.057493455
D100: =SUM(D92:D99) -> 31313 | E100: 14.15769556
A102: Mindösszesen | C102: Társulás | D102: =SUM(D100,D90,D79,D57,D45,D27,D20,D5) -> 222176 | E102: =SUM(E100,E90,E79,E57,E45,E27,E20,E5) -> 100.4534912
